lending/lending_fUSD_20260110
["ID","MTS","AMOUNT","RATE_DAILY","PERIOD"]
[401186258,1768029040347,-500.0,0.00014118,2]
[401186259,1768029040357,-150.0,0.00014118,2]
[401186260,1768029040367,-500.0,0.00014118,2]
[401186261,1768029040378,-49609.38,0.00014119,2]
[401186262,1768029040388,-346.52,0.00014246,2]
[401186263,1768029040398,-542.89957297,0.00014392,2]
[401186264,1768029040407,-140472.94653195,0.00014767,2]
[401186265,1768029040420,-4237.64394581,0.00014767,2]
[401186266,1768029040435,-1427.900885,0.00014767,2]
[401186267,1768029040446,-49929.14578058,0.00014767,2]
[401186268,1768029040460,-801.54783843,0.00014767,2]
[401186269,1768029040471,-1216.12173177,0.00014767,2]
[401186270,1768029040483,-357.7855232,0.00014767,2]
[401186271,1768029040494,-3305.5,0.00014767,2]
[401186272,1768029040505,-56338.72825719,0.00014767,2]
[401186273,1768029040528,-610.57013362,0.00014767,2]
[401186274,1768029040542,-741302.10937245,0.00014767,2]
[401186275,1768029040552,-500.0,0.00014829,2]
[401186276,1768029040562,-242.38852672,0.00014829,2]
[401186277,1768029040572,-250.0,0.00014829,2]
[401186278,1768029040582,-4640.3071,0.00014867,2]
[401186279,1768029040592,-2500.0,0.00014867,2]
[401186280,1768029040601,-500.0,0.00014884,2]
[401186281,1768029040611,-3424.69953468,0.00014893,2]
[401186282,1768029040620,-3816.39845001,0.00014893,2]
[401186283,1768029040629,-316.05282999,0.00014893,2]
[401186284,1768029040639,-316.05282999,0.00014893,2]
[401186285,1768029040649,-500.0,0.00014939,2]
[401186286,1768029040659,-151.0,0.00014945,2]
[401186287,1768029040668,-5469.63784536,0.00014956,2]
[401186288,1768029040678,-500.0,0.00014958,2]
[401186289,1768029040688,-500.0,0.00014958,2]
[401186290,1768029040697,-500.0,0.00014958,2]
[401186291,1768029040707,-500.0,0.00014958,2]
[401186292,1768029040717,-500.0,0.00014958,2]
[401186293,1768029040726,-500.0,0.00014958,2]
[401186294,1768029040736,-500.0,0.00014958,2]
[401186295,1768029040745,-500.0,0.00014958,2]
[401186296,1768029040755,-500.0,0.00014958,2]
[401186297,1768029040764,-500.0,0.00014958,2]
[401186298,1768029040774,-500.0,0.00014958,2]
[401186299,1768029040783,-500.0,0.00014958,2]
[401186300,1768029040793,-500.0,0.00014958,2]
[401186301,1768029040803,-500.0,0.00014958,2]
[401186302,1768029040813,-527.34228679,0.00014958,2]
[401186303,1768029040823,-500.0,0.00014958,2]
[401186304,1768029040833,-500.0,0.00014958,2]
[401186305,1768029040842,-500.0,0.00014958,2]
[401186306,1768029040851,-203.86411687,0.00014958,2]
[401186307,1768029040861,-500.0,0.00014958,2]
[401186308,1768029040871,-500.0,0.00014958,2]
[401186309,1768029040880,-500.0,0.00014958,2]
[401186310,1768029040889,-500.0,0.00014958,2]
[401186311,1768029040899,-151.0,0.00014958,2]
[401186312,1768029040908,-500.0,0.00014958,2]
[401186313,1768029040918,-151.0,0.00014958,2]
[401186314,1768029040928,-205.67940434,0.00014958,2]
[401186315,1768029040937,-151.0,0.00014958,2]
[401186316,1768029040947,-743.345,0.00014966,2]
[401186317,1768029040956,-500.0,0.00014966,2]
[401186318,1768029040966,-174.46651499,0.00014966,2]
[401186319,1768029040975,-500.0,0.00014966,2]
[401186320,1768029040985,-500.0,0.00014966,2]
[401186321,1768029040995,-437.84158115,0.00014966,2]
[401186322,1768029041005,-241.7612937,0.00014966,2]
[401186323,1768029041015,-500.0,0.00014993,2]
[401186324,1768029041024,-500.0,0.00015048,2]
[401186325,1768029041034,-500.0,0.00015057,2]
[401186326,1768029041043,-1000.0,0.00015067,2]
[401186327,1768029041053,-622.14,0.00015068,5]
[401186328,1768029041064,-500.0,0.00015103,2]
[401186329,1768029041075,-500.0,0.00015158,2]
[401186330,1768029041084,-500.0,0.00015173,2]
[401186331,1768029041094,-500.0,0.00015213,2]
[401186332,1768029041104,-3424.69953468,0.00015227,2]
[401186333,1768029041114,-3816.39844994,0.00015227,2]
[401186334,1768029041123,-500.0,0.00015267,2]
[401186335,1768029041133,-500.0,0.00015322,2]
[401186336,1768029041142,-316.05282995,0.00015323,2]
[401186337,1768029041152,-316.05282995,0.00015323,2]
[401186338,1768029041161,-175.0,0.00015377,2]
[401186339,1768029041172,-200.0,0.00015406,2]
[401186340,1768029041181,-600.0,0.00015421,2]
[401186341,1768029041199,-420.0,0.00015449,2]
[401186342,1768029041209,-2788.62,0.00015499,2]
[401186343,1768029041219,-1680.0,0.00015513,2]
[401186344,1768029041229,-3424.69953468,0.00015561,2]
[401186345,1768029041239,-3816.39844994,0.00015561,2]
[401186346,1768029041248,-1000.0,0.00015721,2]
[401186347,1768029041259,-316.05282995,0.00015752,2]
[401186348,1768029041270,-316.05282995,0.00015752,2]
[401186349,1768029041280,-3424.69953468,0.00015895,2]
[401186350,1768029041290,-3816.39844994,0.00015895,2]
[401186351,1768029041300,-354.53949062,0.000159,2]
[401186352,1768029041309,-354.53949062,0.000159,2]
[401186353,1768029041319,-354.53949062,0.000159,2]
[401186354,1768029041329,-354.53949062,0.000159,2]
[401186355,1768029041339,-354.53949062,0.000159,2]
[401186356,1768029041349,-354.53949062,0.000159,2]
[401186357,1768029041358,-346.52,0.00016027,2]
[401186358,1768029041367,-482.91,0.00016082,2]
[401186359,1768029041376,-482.91,0.00016082,2]
[401186360,1768029041386,-482.91,0.00016082,2]
[401186361,1768029041395,-482.91,0.00016082,2]
[401186362,1768029041405,-482.91,0.00016082,2]
[401186363,1768029041414,-482.91,0.00016082,2]
[401186364,1768029041423,-316.05282995,0.00016182,2]
[401186365,1768029041432,-189.54348929,0.000162,2]
[401186366,1768029041443,-263.75602621,0.000162,2]
[401186367,1768029041452,-150.0,0.000162,2]
[401186368,1768029041462,-255.68743637,0.000162,2]
[401186369,1768029041472,-150.0,0.000162,2]
[401186370,1768029041482,-229.31905987,0.000162,2]
[401186371,1768029041491,-150.0,0.000162,2]
[401186372,1768029041501,-150.0,0.000162,2]
[401186373,1768029041510,-216.87423394,0.000162,2]
[401186374,1768029041519,-150.0,0.000162,2]
[401186375,1768029041529,-150.0,0.000162,2]
[401186376,1768029041539,-150.0,0.000162,2]
[401186377,1768029041548,-150.0,0.000162,2]
[401186378,1768029041558,-150.0,0.000162,2]
[401186379,1768029041568,-150.0,0.000162,2]
[401186380,1768029041578,-178.71892515,0.000162,2]
[401186381,1768029041587,-150.0,0.000162,2]
[401186382,1768029041596,-189.54348929,0.00016218,2]
[401186383,1768029041605,-263.75602621,0.00016218,2]
[401186384,1768029041615,-255.68743637,0.00016218,2]
[401186385,1768029041624,-229.31905987,0.00016218,2]
[401186386,1768029041633,-216.87423394,0.00016218,2]
[401186387,1768029041642,-178.71892515,0.00016218,2]
[401186388,1768029041652,-3424.69953468,0.00016229,2]
[401186389,1768029041662,-3816.39844994,0.00016229,2]
[401186390,1768029041671,-150.0,0.0001623,2]
[401186391,1768029041680,-150.0,0.00016235,2]
[401186392,1768029041689,-189.54348929,0.00016236,2]
[401186393,1768029041698,-263.75602621,0.00016236,2]
[401186394,1768029041709,-255.68743637,0.00016236,2]
[401186395,1768029041718,-229.31905987,0.00016236,2]
[401186396,1768029041728,-216.87423394,0.00016236,2]
[401186397,1768029041738,-178.71892515,0.00016236,2]
[401186398,1768029041750,-150.0,0.00016241,2]
[401186399,1768029041759,-189.54348929,0.00016255,2]
[401186400,1768029041769,-263.75602621,0.00016255,2]
[401186401,1768029041778,-255.68743637,0.00016255,2]
[401186402,1768029041787,-229.31905987,0.00016255,2]
[401186403,1768029041797,-216.87423394,0.00016255,2]
[401186404,1768029041806,-178.71892515,0.00016255,2]
[401186405,1768029041817,-766.11378665,0.00016258,2]
[401186406,1768029041827,-150.0,0.00016259,2]
[401186407,1768029041836,-150.0,0.00016267,2]
[401186408,1768029041846,-1196.96188571,0.00016268,2]
[401186409,1768029041856,-150.0,0.00016269,2]
[401186410,1768029042154,-189.54348929,0.00016273,2]
[401186411,1768029042165,-263.75602621,0.00016273,2]
[401186412,1768029042175,-255.68743637,0.00016273,2]
[401186413,1768029042185,-229.31905987,0.00016273,2]
[401186414,1768029042195,-216.87423394,0.00016273,2]
[401186415,1768029042205,-178.71892515,0.00016273,2]
[401186416,1768029042215,-150.0,0.00016282,2]
[401186417,1768029042225,-150.0,0.00016289,2]
[401186418,1768029042235,-189.54348929,0.00016291,2]
[401186419,1768029042245,-263.75602621,0.00016291,2]
[401186420,1768029042255,-255.68743637,0.00016291,2]
[401186421,1768029042265,-229.31905987,0.00016291,2]
[401186422,1768029042275,-216.87423394,0.00016291,2]
[401186423,1768029042285,-178.71892515,0.00016291,2]
[401186424,1768029042296,-150.0,0.00016304,2]
[401186425,1768029042306,-189.54348929,0.00016309,2]
[401186426,1768029042316,-263.75602621,0.00016309,2]
[401186427,1768029042325,-255.68743637,0.00016309,2]
[401186428,1768029042336,-229.31905987,0.00016309,2]
[401186429,1768029042345,-216.87423394,0.00016309,2]
[401186430,1768029042354,-178.71892515,0.00016309,2]
[401186431,1768029042364,-150.0,0.00016312,2]
[401186432,1768029042374,-150.0,0.00016318,2]
[401186433,1768029042384,-150.0,0.00016323,2]
[401186434,1768029042394,-189.54348929,0.00016327,2]
[401186435,1768029042404,-263.75602621,0.00016327,2]
[401186436,1768029042413,-255.68743637,0.00016327,2]
[401186437,1768029042423,-229.31905987,0.00016327,2]
[401186438,1768029042432,-216.87423394,0.00016327,2]
[401186439,1768029042442,-178.71892515,0.00016327,2]
[401186440,1768029042451,-150.0,0.00016333,2]
[401186441,1768029042461,-150.0,0.00016338,2]
[401186442,1768029042471,-189.54348929,0.00016345,2]
[401186443,1768029042480,-263.75602621,0.00016345,2]
[401186444,1768029042489,-255.68743637,0.00016345,2]
[401186445,1768029042498,-229.31905987,0.00016345,2]
[401186446,1768029042508,-216.87423394,0.00016345,2]
[401186447,1768029042517,-178.71892515,0.00016345,2]
[401186448,1768029042527,-150.0,0.00016348,2]
[401186449,1768029042537,-189.54348929,0.00016364,2]
[401186450,1768029042546,-263.75602621,0.00016364,2]
[401186451,1768029042556,-255.68743637,0.00016364,2]
[401186452,1768029042565,-229.31905987,0.00016364,2]
[401186453,1768029042575,-150.0,0.00016364,2]
[401186454,1768029042584,-216.87423394,0.00016364,2]
[401186455,1768029042594,-178.71892515,0.00016364,2]
[401186456,1768029042603,-150.0,0.00016373,2]
[401186457,1768029042612,-150.0,0.00016377,2]
[401186458,1768029042622,-189.54348929,0.00016382,2]
[401186459,1768029042632,-263.75602621,0.00016382,2]
[401186460,1768029042641,-255.68743637,0.00016382,2]
[401186461,1768029042650,-229.31905987,0.00016382,2]
[401186462,1768029042660,-216.87423394,0.00016382,2]
[401186463,1768029042669,-178.71892515,0.00016382,2]
[401186464,1768029042679,-189.54348929,0.000164,2]
[401186465,1768029042688,-263.75602621,0.000164,2]
[401186466,1768029042698,-255.68743637,0.000164,2]
[401186467,1768029042707,-229.31905987,0.000164,2]
[401186468,1768029042718,-150.0,0.000164,2]
[401186469,1768029042727,-216.87423394,0.000164,2]
[401186470,1768029042737,-150.0,0.000164,2]
[401186471,1768029042747,-150.0,0.000164,2]
[401186472,1768029042757,-178.71892515,0.000164,2]
[401186473,1768029042766,-150.0,0.00016405,2]
[401186474,1768029042775,-150.0,0.00016407,2]
[401186475,1768029042785,-150.0,0.00016408,2]
[401186476,1768029042795,-513.0,0.00016409,2]
[401186477,1768029042804,-189.54348929,0.00016418,2]
[401186478,1768029042813,-263.75602621,0.00016418,2]
[401186479,1768029042822,-255.68743637,0.00016418,2]
[401186480,1768029042832,-229.31905987,0.00016418,2]
[401186481,1768029042842,-216.87423394,0.00016418,2]
[401186482,1768029042851,-178.71892515,0.00016418,2]
[401186483,1768029042862,-513.0,0.00016424,2]
[401186484,1768029042871,-150.0,0.00016425,2]
[401186485,1768029042881,-150.0,0.00016436,2]
[401186486,1768029042890,-189.54348929,0.00016436,2]
[401186487,1768029042900,-263.75602621,0.00016436,2]
[401186488,1768029042909,-255.68743637,0.00016436,2]
[401186489,1768029042919,-229.31905987,0.00016436,2]
[401186490,1768029042929,-216.87423394,0.00016436,2]
[401186491,1768029042939,-178.71892515,0.00016436,2]
[401186492,1768029042949,-500.0,0.00016438,2]
[401186493,1768029042959,-500.0,0.00016438,2]
[401186494,1768029042969,-500.0,0.00016438,2]
[401186495,1768029042979,-500.0,0.00016438,2]
[401186496,1768029042989,-500.0,0.00016438,2]
[401186497,1768029042999,-500.0,0.00016438,2]
[401186498,1768029043009,-500.0,0.00016438,2]
[401186499,1768029043019,-500.0,0.00016438,2]
[401186500,1768029043028,-500.0,0.00016438,2]
[401186501,1768029043037,-500.0,0.00016438,2]
[401186502,1768029043047,-500.0,0.00016438,2]
[401186503,1768029043057,-155.90809256,0.00016438,2]
[401186504,1768029043070,-500.0,0.00016438,2]
[401186505,1768029043080,-500.0,0.00016438,2]
[401186506,1768029043090,-500.0,0.00016438,2]
[401186507,1768029043099,-500.0,0.00016438,2]
[401186508,1768029043109,-500.0,0.00016438,2]
[401186509,1768029043119,-500.0,0.00016438,2]
[401186510,1768029043129,-500.0,0.00016438,2]
[401186511,1768029043138,-500.0,0.00016438,2]
[401186512,1768029043147,-500.0,0.00016438,2]
[401186513,1768029043157,-500.0,0.00016438,2]
[401186514,1768029043166,-600.0,0.00016438,2]
[401186515,1768029043175,-8860.89,0.00016438,2]
[401186516,1768029043185,-567.0,0.00016438,2]
[401186517,1768029043194,-150.0,0.00016442,2]
[401186518,1768029043203,-150.0,0.00016445,2]
[401186519,1768029043213,-189.54348929,0.00016455,2]
[401186520,1768029043223,-263.75602621,0.00016455,2]
[401186521,1768029043233,-255.68743637,0.00016455,2]
[401186522,1768029043243,-229.31905987,0.00016455,2]
[401186523,1768029043253,-216.87423394,0.00016455,2]
[401186524,1768029043263,-178.71892515,0.00016455,2]
[401186525,1768029043273,-150.0,0.00016466,2]
[401186526,1768029043283,-150.0,0.00016467,2]
[401186527,1768029043294,-189.54348929,0.00016473,2]
[401186528,1768029043305,-263.75602621,0.00016473,2]
[401186529,1768029043315,-255.68743637,0.00016473,2]
[401186530,1768029043326,-229.31905987,0.00016473,2]
[401186531,1768029043336,-216.87423394,0.00016473,2]
[401186532,1768029043347,-178.71892515,0.00016473,2]
[401186533,1768029043357,-150.0,0.00016477,2]
[401186534,1768029043367,-150.0,0.00016486,2]
[401186535,1768029043378,-189.54348929,0.00016491,2]
[401186536,1768029043392,-263.75602621,0.00016491,2]
[401186537,1768029043402,-255.68743637,0.00016491,2]
[401186538,1768029043412,-229.31905987,0.00016491,2]
[401186539,1768029043422,-216.87423394,0.00016491,2]
[401186540,1768029043432,-178.71892515,0.00016491,2]
[401186541,1768029043442,-150.0,0.00016495,2]
[401186542,1768029043452,-500.0,0.00016499,2]
[401186543,1768029043463,-150.0,0.000165,2]
[401186544,1768029043473,-10000.0,0.000165,2]
[401186545,1768029043483,-189.54348929,0.00016509,2]
[401186546,1768029043493,-263.75602621,0.00016509,2]
[401186547,1768029043503,-255.68743637,0.00016509,2]
[401186548,1768029043513,-229.31905987,0.00016509,2]
[401186549,1768029043523,-216.87423394,0.00016509,2]
[401186550,1768029043534,-178.71892515,0.00016509,2]
[401186551,1768029043545,-150.0,0.00016512,2]
[401186552,1768029043560,-150.0,0.00016525,2]
[401186553,1768029043573,-189.54348929,0.00016527,2]
[401186554,1768029043583,-263.75602621,0.00016527,2]
[401186555,1768029043592,-255.68743637,0.00016527,2]
[401186556,1768029043602,-229.31905987,0.00016527,2]
[401186557,1768029043612,-150.0,0.00016527,2]
[401186558,1768029043622,-216.87423394,0.00016527,2]
[401186559,1768029043632,-178.71892515,0.00016527,2]
[401186560,1768029043641,-150.0,0.00016533,2]
[401186561,1768029043654,-150.0,0.00016537,2]
[401186562,1768029043664,-189.54348929,0.00016545,2]
[401186563,1768029043675,-263.75602621,0.00016545,2]
[401186564,1768029043685,-255.68743637,0.00016545,2]
[401186565,1768029043696,-229.31905987,0.00016545,2]
[401186566,1768029043706,-216.87423394,0.00016545,2]
[401186567,1768029043716,-178.71892515,0.00016545,2]
[401186568,1768029043725,-150.0,0.00016546,2]
[401186569,1768029043735,-150.0,0.00016554,2]
[401186570,1768029043744,-150.0,0.0001656,2]
[401186572,1768029043754,-3424.69953468,0.00016564,2]
[401186574,1768029043764,-3816.39844994,0.00016564,2]
[401186575,1768029043773,-189.54348929,0.00016564,2]
[401186576,1768029043784,-263.75602621,0.00016564,2]
[401186577,1768029043794,-255.68743637,0.00016564,2]
[401186578,1768029043804,-229.31905987,0.00016564,2]
[401186579,1768029043814,-216.87423394,0.00016564,2]
[401186580,1768029043824,-178.71892515,0.00016564,2]
[401186581,1768029043834,-150.0,0.00016568,2]
[401186582,1768029043844,-2371.88,0.00016575,2]
[401186583,1768029043853,-150.0,0.00016581,2]
[401186584,1768029043863,-189.54348929,0.00016582,2]
[401186585,1768029043873,-263.75602621,0.00016582,2]
[401186586,1768029043883,-255.68743637,0.00016582,2]
[401186587,1768029043893,-229.31905987,0.00016582,2]
[401186588,1768029043903,-216.87423394,0.00016582,2]
[401186589,1768029043913,-178.71892515,0.00016582,2]
[401186590,1768029043923,-150.0,0.00016584,2]
[401186591,1768029043933,-189.54348929,0.000166,2]
[401186592,1768029043942,-263.75602621,0.000166,2]
[401186593,1768029043952,-255.68743637,0.000166,2]
[401186594,1768029043962,-229.31905987,0.000166,2]
[401186595,1768029043972,-150.0,0.000166,2]
[401186596,1768029043982,-216.87423394,0.000166,2]
[401186597,1768029043994,-150.0,0.000166,2]
[401186598,1768029044003,-150.0,0.000166,2]
[401186599,1768029044012,-178.71892515,0.000166,2]
[401186600,1768029044021,-150.0,0.00016609,2]
[401186601,1768029044031,-150.0,0.00016613,2]
[401186602,1768029044041,-150.0,0.00016615,2]
[401186603,1768029044051,-189.54348929,0.00016618,2]
[401186604,1768029044062,-263.75602621,0.00016618,2]
[401186605,1768029044075,-255.68743637,0.00016618,2]
[401186606,1768029044086,-229.31905987,0.00016618,2]
[401186607,1768029044096,-216.87423394,0.00016618,2]
[401186608,1768029044107,-178.71892515,0.00016618,2]
[401186609,1768029044117,-189.54348929,0.00016636,2]
[401186610,1768029044127,-263.75602621,0.00016636,2]
[401186611,1768029044138,-255.68743637,0.00016636,2]
[401186612,1768029044148,-229.31905987,0.00016636,2]
[401186613,1768029044158,-216.87423394,0.00016636,2]
[401186614,1768029044169,-178.71892515,0.00016636,2]
[401186615,1768029044179,-150.0,0.00016643,2]
[401186616,1768029044190,-150.0,0.0001665,2]
[401186617,1768029044199,-150.0,0.0001665,2]
[401186618,1768029044210,-150.0,0.0001665,2]
[401186619,1768029044222,-189.54348929,0.00016655,2]
[401186620,1768029044232,-263.75602621,0.00016655,2]
[401186621,1768029044242,-255.68743637,0.00016655,2]
[401186622,1768029044252,-229.31905987,0.00016655,2]
[401186623,1768029044263,-216.87423394,0.00016655,2]
[401186624,1768029044272,-178.71892515,0.00016655,2]
[401186625,1768029044282,-150.0,0.00016667,2]
[401186626,1768029044292,-150.0,0.00016672,2]
[401186627,1768029044302,-189.54348929,0.00016673,2]
[401186628,1768029044312,-263.75602621,0.00016673,2]
[401186629,1768029044321,-255.68743637,0.00016673,2]
[401186630,1768029044331,-229.31905987,0.00016673,2]
[401186631,1768029044341,-216.87423394,0.00016673,2]
[401186632,1768029044351,-178.71892515,0.00016673,2]
[401186633,1768029044366,-150.0,0.00016685,2]
[401186634,1768029044375,-189.54348929,0.00016691,2]
[401186635,1768029044386,-263.75602621,0.00016691,2]
[401186636,1768029044395,-255.68743637,0.00016691,2]
[401186637,1768029044406,-229.31905987,0.00016691,2]
[401186638,1768029044416,-150.0,0.00016691,2]
[401186639,1768029044425,-216.87423394,0.00016691,2]
[401186640,1768029044435,-178.71892515,0.00016691,2]
[401186641,1768029044445,-150.0,0.00016702,2]
[401186642,1768029044454,-189.54348929,0.00016709,2]
[401186643,1768029044464,-263.75602621,0.00016709,2]
[401186644,1768029044474,-255.68743637,0.00016709,2]
[401186645,1768029044484,-229.31905987,0.00016709,2]
[401186646,1768029044494,-216.87423394,0.00016709,2]
[401186647,1768029044503,-178.71892515,0.00016709,2]
[401186648,1768029044513,-160.0,0.00016712,2]
[401186649,1768029044523,-150.0,0.00016719,2]
[401186650,1768029044533,-189.54348929,0.00016727,2]
[401186651,1768029044543,-263.75602621,0.00016727,2]
[401186652,1768029044554,-255.68743637,0.00016727,2]
[401186653,1768029044564,-229.31905987,0.00016727,2]
[401186654,1768029044575,-216.87423394,0.00016727,2]
[401186655,1768029044585,-178.71892515,0.00016727,2]
[401186656,1768029044595,-150.0,0.00016731,2]
[401186657,1768029044605,-150.0,0.00016732,2]
[401186658,1768029044615,-150.0,0.00016733,2]
[401186659,1768029044625,-189.54348929,0.00016745,2]
[401186660,1768029044635,-263.75602621,0.00016745,2]
[401186661,1768029044645,-255.68743637,0.00016745,2]
[401186662,1768029044655,-229.31905987,0.00016745,2]
[401186663,1768029044665,-216.87423394,0.00016745,2]
[401186664,1768029044675,-178.71892515,0.00016745,2]
[401186665,1768029044685,-150.0,0.00016754,2]
[401186666,1768029044695,-150.0,0.00016761,2]
[401186667,1768029044705,-150.0,0.00016762,2]
[401186668,1768029044716,-189.54348929,0.00016764,2]
[401186669,1768029044725,-263.75602621,0.00016764,2]
[401186670,1768029044735,-255.68743637,0.00016764,2]
[401186671,1768029044745,-229.31905987,0.00016764,2]
[401186672,1768029044754,-216.87423394,0.00016764,2]
[401186673,1768029044765,-178.71892515,0.00016764,2]
[401186674,1768029044775,-150.0,0.00016773,2]
[401186675,1768029044784,-513.0,0.00016779,2]
[401186676,1768029044795,-189.54348929,0.00016782,2]
[401186677,1768029044805,-263.75602621,0.00016782,2]
[401186678,1768029044815,-255.68743637,0.00016782,2]
[401186679,1768029044826,-229.31905987,0.00016782,2]
[401186680,1768029044835,-216.87423394,0.00016782,2]
[401186681,1768029044846,-178.71892515,0.00016782,2]
[401186682,1768029044856,-150.0,0.00016788,2]
[401186683,1768029044865,-150.0,0.0001679,2]
[401186684,1768029044874,-513.0,0.00016797,2]
[401186685,1768029044885,-189.54348929,0.000168,2]
[401186686,1768029044895,-263.75602621,0.000168,2]
[401186687,1768029044906,-255.68743637,0.000168,2]
[401186688,1768029044916,-150.0,0.000168,2]
[401186689,1768029044926,-229.31905987,0.000168,2]
[401186690,1768029044936,-150.0,0.000168,2]
[401186691,1768029044946,-216.87423394,0.000168,2]
[401186692,1768029044956,-150.0,0.000168,2]
[401186693,1768029044966,-150.0,0.000168,2]
[401186694,1768029044976,-178.71892515,0.000168,2]
[401186695,1768029044986,-150.0,0.000168,2]
[401186696,1768029044995,-150.0,0.00016814,2]
[401186697,1768029045005,-189.54348929,0.00016818,2]
[401186698,1768029045015,-263.75602621,0.00016818,2]
[401186699,1768029045026,-255.68743637,0.00016818,2]
[401186700,1768029045036,-229.31905987,0.00016818,2]
[401186701,1768029045046,-216.87423394,0.00016818,2]
[401186702,1768029045055,-178.71892515,0.00016818,2]
[401186703,1768029045065,-150.0,0.0001682,2]
[401186704,1768029045074,-433.0,0.00016823,2]
[401186705,1768029045084,-150.0,0.00016823,2]
[401186706,1768029045095,-189.54348929,0.00016836,2]
[401186707,1768029045105,-263.75602621,0.00016836,2]
[401186708,1768029045114,-255.68743637,0.00016836,2]
[401186709,1768029045124,-229.31905987,0.00016836,2]
[401186710,1768029045134,-216.87423394,0.00016836,2]
[401186711,1768029045144,-178.71892515,0.00016836,2]
[401186712,1768029045154,-150.0,0.00016849,2]
[401186713,1768029045163,-513.0,0.00016854,2]
[401186714,1768029045174,-189.54348929,0.00016855,2]
[401186715,1768029045183,-263.75602621,0.00016855,2]
[401186716,1768029045193,-255.68743637,0.00016855,2]
[401186717,1768029045203,-229.31905987,0.00016855,2]
[401186718,1768029045213,-150.0,0.00016855,2]
[401186719,1768029045223,-216.87423394,0.00016855,2]
[401186720,1768029045233,-178.71892515,0.00016855,2]
[401186721,1768029045243,-150.0,0.00016858,2]
[401186722,1768029045253,-150.0,0.00016867,2]
[401186723,1768029045263,-189.54348929,0.00016873,2]
[401186724,1768029045273,-263.75602621,0.00016873,2]
[401186725,1768029045284,-255.68743637,0.00016873,2]
[401186726,1768029045294,-229.31905987,0.00016873,2]
[401186727,1768029045304,-216.87423394,0.00016873,2]
[401186728,1768029045314,-178.71892515,0.00016873,2]
[401186729,1768029045324,-150.0,0.00016875,2]
[401186730,1768029045334,-150.0,0.00016879,2]
[401186731,1768029045343,-171.4,0.00016888,2]
[401186732,1768029045353,-171.4,0.00016888,2]
[401186733,1768029045363,-548.91,0.00016888,2]
[401186734,1768029045373,-466.84,0.00016888,2]
[401186735,1768029045383,-466.84,0.00016888,2]
[401186736,1768029045393,-466.84,0.00016888,2]
[401186737,1768029045403,-189.54348929,0.00016891,2]
[401186738,1768029045412,-263.75602621,0.00016891,2]
[401186739,1768029045422,-255.68743637,0.00016891,2]
[401186740,1768029045432,-229.31905987,0.00016891,2]
[401186741,1768029045442,-216.87423394,0.00016891,2]
[401186742,1768029045452,-178.71892515,0.00016891,2]
[401186743,1768029045462,-150.0,0.00016892,2]
[401186745,1768029045472,-150.0,0.00016895,2]
[401186746,1768029045481,-3424.69953468,0.00016898,2]
[401186747,1768029045491,-3816.39844994,0.00016898,2]
[401186748,1768029045501,-150.0,0.00016908,2]
[401186749,1768029045511,-189.54348929,0.00016909,2]
[401186750,1768029045520,-263.75602621,0.00016909,2]
[401186751,1768029045529,-255.68743637,0.00016909,2]
[401186752,1768029045539,-229.31905987,0.00016909,2]
[401186753,1768029045549,-216.87423394,0.00016909,2]
[401186754,1768029045559,-178.71892515,0.00016909,2]
[401186755,1768029045569,-150.0,0.0001692,2]
[401186756,1768029045578,-587.0,0.00016924,2]
[401186757,1768029045588,-150.0,0.00016927,2]
[401186758,1768029045597,-189.54348929,0.00016927,2]
[401186759,1768029045607,-263.75602621,0.00016927,2]
[401186760,1768029045617,-255.68743637,0.00016927,2]